[Event "NOR-ch Various 2019"]
[Site "Larvik"]
[Date "2019.07.07"]
[Round "2.12"]
[White "Skaansar, Lasse"]
[Black "Tobiassen, Richard"]
[Result "1/2-1/2"]
[ECO "A06"]
[WhiteElo "1394"]
[BlackElo "1321"]
[Annotator "NA"]
[PlyCount "98"]
[EventDate "2019.07.06"]
[EventType "swiss"]
[EventCountry "NOR"]
[SourceTitle "playchess.com"]
[Source "ChessBase"]
[SourceQuality "1"]
[TimeControl "40/5400+30:1800+30"]

1. Nf3 {[%emt 0:00:00]} Nf6 {[%emt 0:00:00]} 2. b3 {[%emt 0:00:00]} d5 {[%emt 0:01:26]} 3. Bb2 {[%emt 0:00:09]} e6 {[%emt 0:00:11]} 4. d3 {[%emt 0:01:01]} Be7 {[%emt 0:00:47]} 5. g3 {[%emt 0:00:22]} c5 {[%emt 0:01:00]} 6. Bg2 {[%emt 0:01:56]} O-O {[%emt 0:00:21]} 7. Nbd2 {[%emt 0:00:26]} Nbd7 {[%emt 0:03:56]} 8. O-O {[%emt 0:01:15]} Qc7 {[%emt 0:01:10]} 9. Re1 {[%emt 0:02:42]} e5 {[%emt 0:04:31]} 10. e4 {[%emt 0:03:49]} d4 {[%emt 0:02:37]} 11. a4 {[%emt 0:01:21]} Re8 {[%emt 0:01:06]} 12. Nc4 {[%emt 0:02:32]} Bd6 {[%emt 0:00:20]} 13. Nxd6 {[%emt 0:01:18]} Qxd6 {[%emt 0:00:19]} 14. Nd2 {[%emt 0:05:10]} Nf8 {[%emt 0:02:54]} 15. Nc4 {[%emt 0:00:37]} Qe7 {[%emt 0:01:15]} 16. Rf1 {[%emt 0:06:39]} Ng6 {[%emt 0:02:45]} 17. f4 {[%emt 0:07:43]} exf4 {[%emt 0:02:38]} 18. gxf4 {[%emt 0:00:07]} Ng4 {[%emt 0:04:37]} 19. Qe1 {[%emt 0:04:31]} Nh4 {[%emt 0:08:20]} 20. Bh1 {[%emt 0:10:15]} Qf6 {[%emt 0:03:58]} 21. e5 {[%emt 0:03:01]} Qh6 {[%emt 0:14:31]} 22. Qg3 {[%emt 0:04:22]} Nf5 {[%emt 0:23:45]} 23. Qxg4 {[%emt 0:02:19]} Ne3 {[%emt 0:02:08]} 24. Qg5 {[%emt 0:00:26]} Qxg5+ {[%emt 0:02:47]} 25. fxg5 {[%emt 0:00:12]} Nxf1 {[%emt 0:00:20]} 26. Rxf1 {[%emt 0:00:20]} Rb8 {[%emt 0:01:14]} 27. Be4 {[%emt 0:05:34]} Bg4 {[%emt 0:02:59]} 28. Bxb7 {[%emt 0:10:26]} Rxb7 {[%emt 0:02:58]} 29. Nd6 {[%emt 0:00:08]} Rbe7 {[%emt 0:00:17]} 30. Nxe8 {[%emt 0:00:15]} Rxe8 {[%emt 0:00:38]} 31. Re1 {[%emt 0:03:57]} f6 {[%emt 0:00:18]} 32. gxf6 {[%emt 0:00:07]} gxf6 {[%emt 0:00:21]} 33. e6 {[%emt 0:00:58]} Rxe6 {[%emt 0:06:48]} 34. Rxe6 {[%emt 0:00:17]} Bxe6 {[%emt 0:00:04]} 35. h3 {[%emt 0:01:20]} Bxh3 {[%emt 0:00:33]} 36. Kf2 {[%emt 0:00:42]} Kf7 {[%emt 0:00:31]} 37. Ba3 {[%emt 0:00:13]} Ke6 {[%emt 0:01:44]} 38. Bxc5 {[%emt 0:00:12]} Kd5 {[%emt 0:00:50]} 39. Bxa7 {[%emt 0:00:28]} Bg4 {[%emt 0:00:37]} 40. Ke1 {[%emt 0:01:17]} h5 {[%emt 0:00:48]} 41. b4 {[%emt 0:34:14]} h4 {[%emt 0:31:20]} 42. Bb8 {[%emt 0:03:07]} Kc6 {[%emt 0:00:00]} 43. Kd2 {[%emt 0:00:00]} Bd7 {[%emt 0:00:00]} 44. a5 {[%emt 0:00:00]} Kb5 {[%emt 0:00:00]} 45. c3 {[%emt 0:00:00]} dxc3+ {[%emt 0:00:00]} 46. Kxc3 {[%emt 0:00:00]} Bc6 {[%emt 0:00:00]} 47. Bd6 {[%emt 0:00:00]} f5 {[%emt 0:00:00]} 48. Kd4 {[%emt 0:00:00]} f4 {[%emt 0:00:00]} 49. Bxf4 {[%emt 0:00:00]} Kxb4 {[%emt 0:00:00]} 1/2-1/2

[Event "NOR-ch Various 2019"]
[Site "Larvik"]
[Date "2019.07.07"]
[Round "2.15"]
[White "Odde, Eilif"]
[Black "Fossan, Petter"]
[Result "0-1"]
[ECO "C01"]
[WhiteElo "1969"]
[BlackElo "2295"]
[Annotator "NA"]
[PlyCount "68"]
[EventDate "2019.07.06"]
[EventType "swiss"]
[EventCountry "NOR"]
[SourceTitle "playchess.com"]
[Source "ChessBase"]
[SourceQuality "1"]
[TimeControl "40/5400+30:1800+30"]

1. d4 {[%emt 0:00:00]} e6 {[%emt 0:07:09]} 2. e4 {[%emt 0:00:18]} d5 {[%emt 0:00:09]} 3. exd5 {[%emt 0:00:20]} exd5 {[%emt 0:00:05]} 4. Bd3 {[%emt 0:00:04]} Nc6 {[%emt 0:03:14]} 5. c3 {[%emt 0:01:26]} Bd6 {[%emt 0:00:38]} 6. Nf3 {[%emt 0:00:57]} Nge7 {[%emt 0:05:57]} 7. Bg5 {[%emt 0:01:35]} f6 {[%emt 0:01:45]} 8. Bh4 {[%emt 0:00:16]} Bg4 {[%emt 0:02:59]} 9. Bg3 {[%emt 0:03:26]} Qd7 {[%emt 0:04:15]} 10. Nbd2 {[%emt 0:01:00]} O-O-O {[%emt 0:02:59]} 11. O-O {[%emt 0:07:40]} h5 {[%emt 0:03:55]} 12. Qc2 {[%emt 0:02:37]} g5 {[%emt 0:04:17]} 13. b4 {[%emt 0:13:36]} Rdg8 {[%emt 0:04:45]} 14. Rfe1 {[%emt 0:04:42]} h4 {[%emt 0:01:52]} 15. Bxd6 {[%emt 0:00:24]} Qxd6 {[%emt 0:00:06]} 16. b5 {[%emt 0:03:01]} Nd8 {[%emt 0:07:38]} 17. c4 {[%emt 0:02:55]} dxc4 {[%emt 0:04:02]} 18. Ne4 {[%emt 0:08:43]} Qf4 {[%emt 0:02:00]} 19. Bxc4 {[%emt 0:03:56]} Rg7 {[%emt 0:21:36]} 20. Nfd2 {[%emt 0:07:46]} Bf5 {[%emt 0:07:16]} 21. Rac1 {[%emt 0:05:53]} Kb8 {[%emt 0:02:35]} 22. Re3 {[%emt 0:03:40]} g4 {[%emt 0:01:00]} 23. g3 {[%emt 0:03:15]} hxg3 {[%emt 0:01:26]} 24. Rxg3 {[%emt 0:02:10]} Ng6 {[%emt 0:01:24]} 25. Bd3 {[%emt 0:01:43]} Ne6 {[%emt 0:01:48]} 26. Qc4 {[%emt 0:01:03]} Qh6 {[%emt 0:00:45]} 27. Nf1 {[%emt 0:02:10]} Nh4 {[%emt 0:01:39]} 28. Ned2 {[%emt 0:06:30]} Nf3+ {[%emt 0:02:13]} 29. Nxf3 {[%emt 0:01:07]} Bxd3 {[%emt 0:00:04]} 30. Qxd3 {[%emt 0:01:18]} Qxc1 {[%emt 0:00:11]} 31. Qe4 {[%emt 0:01:33]} gxf3 {[%emt 0:02:20]} 32. Qxe6 {[%emt 0:00:06]} Rxg3+ {[%emt 0:00:14]} 33. fxg3 {[%emt 0:01:02]} Qb2 {[%emt 0:00:20]} 34. Ne3 {[%emt 0:00:31]} Qxh2+ {[%emt 0:00:12]} 0-1

[Event "NOR-ch Various 2019"]
[Site "Larvik"]
[Date "2019.07.07"]
[Round "2.17"]
[White "Heier, Odin Nikolai"]
[Black "Sjoberg, Isak"]
[Result "0-1"]
[ECO "E61"]
[WhiteElo "1863"]
[BlackElo "2182"]
[Annotator "NA"]
[PlyCount "110"]
[EventDate "2019.07.06"]
[EventType "swiss"]
[EventCountry "NOR"]
[SourceTitle "playchess.com"]
[Source "ChessBase"]
[SourceQuality "1"]
[TimeControl "40/5400+30:1800+30"]

1. d4 {[%emt 0:00:00]} Nf6 {[%emt 0:00:33]} 2. Bf4 {[%emt 0:00:00]} g6 {[%emt 0:00:06]} 3. Nf3 {[%emt 0:00:11]} Bg7 {[%emt 0:00:05]} 4. e3 {[%emt 0:00:19]} d6 {[%emt 0:00:05]} 5. Be2 {[%emt 0:00:24]} O-O {[%emt 0:02:29]} 6. c4 {[%emt 0:00:20]} c5 {[%emt 0:03:12]} 7. Nc3 {[%emt 0:02:39]} Nh5 {[%emt 0:06:51]} 8. Bg5 {[%emt 0:00:36]} h6 {[%emt 0:01:11]} 9. Bh4 {[%emt 0:00:12]} g5 {[%emt 0:00:46]} 10. Bg3 {[%emt 0:03:06]} Nxg3 {[%emt 0:02:41]} 11. hxg3 {[%emt 0:00:12]} cxd4 {[%emt 0:03:25]} 12. Nxd4 {[%emt 0:25:01]} Nc6 {[%emt 0:03:01]} 13. Nb3 {[%emt 0:04:33]} Bf5 {[%emt 0:10:39]} 14. Rc1 {[%emt 0:07:18]} Rc8 {[%emt 0:07:14]} 15. Qd2 {[%emt 0:13:08]} Ne5 {[%emt 0:09:12]} 16. Nb5 {[%emt 0:03:21]} Be6 {[%emt 0:13:08]} 17. N5d4 {[%emt 0:06:29]} Bxc4 {[%emt 0:01:52]} 18. Nf5 {[%emt 0:03:24]} Qd7 {[%emt 0:03:11]} 19. Nxh6+ {[%emt 0:12:26]} Bxh6 {[%emt 0:00:10]} 20. Rxh6 {[%emt 0:00:04]} Bxe2 {[%emt 0:12:35]} 21. Qxe2 {[%emt 0:12:02]} Kg7 {[%emt 0:12:36]} 22. Rh5 {[%emt 0:03:02]} f6 {[%emt 0:02:30]} 23. Rd1 {[%emt 0:01:48]} Rh8 {[%emt 0:00:59]} 24. Rxh8 {[%emt 0:00:37]} Rxh8 {[%emt 0:00:02]} 25. f3 {[%emt 0:00:39]} Qf5 {[%emt 0:00:44]} 26. Nd4 {[%emt 0:00:34]} Rh1+ {[%emt 0:00:24]} 27. Kd2 {[%emt 0:00:05]} Rxd1+ {[%emt 0:00:18]} 28. Kxd1 {[%emt 0:00:52]} Qb1+ {[%emt 0:00:09]} 29. Kd2 {[%emt 0:00:08]} Qxb2+ {[%emt 0:00:13]} 30. Ke1 {[%emt 0:00:52]} Qb1+ {[%emt 0:00:13]} 31. Qd1 {[%emt 0:00:27]} Qxa2 {[%emt 0:00:21]} 32. Kf1 {[%emt 0:00:34]} Qa3 {[%emt 0:01:35]} 33. Qd2 {[%emt 0:00:34]} Qd3+ {[%emt 0:00:20]} 34. Ke1 {[%emt 0:00:12]} Qxd2+ {[%emt 0:01:34]} 35. Kxd2 {[%emt 0:00:09]} Kf7 {[%emt 0:00:07]} 36. Kc3 {[%emt 0:00:06]} a6 {[%emt 0:00:22]} 37. f4 {[%emt 0:00:39]} Ng4 {[%emt 0:00:38]} 38. Nc2 {[%emt 0:00:46]} Nf2 {[%emt 0:00:16]} 39. Kb4 {[%emt 0:00:41]} b6 {[%emt 0:00:13]} 40. Nd4 {[%emt 0:00:39]} Ne4 {[%emt 0:00:43]} 41. Ne2 {[%emt 0:30:20]} Kg6 {[%emt 0:04:16]} 42. Kc4 {[%emt 0:00:00]} Kh5 {[%emt 0:00:46]} 43. Kd5 {[%emt 0:00:00]} Nc5 {[%emt 0:00:04]} 44. Kc6 {[%emt 0:00:00]} b5 {[%emt 0:00:07]} 45. Kd5 {[%emt 0:00:00]} Kg4 {[%emt 0:00:43]} 46. e4 {[%emt 0:00:00]} b4 {[%emt 0:00:51]} 47. Kd4 {[%emt 0:00:00]} b3 {[%emt 0:00:19]} 48. e5 {[%emt 0:00:00]} b2 {[%emt 0:00:44]} 49. Nc3 {[%emt 0:00:00]} Kxg3 {[%emt 0:01:23]} 50. fxg5 {[%emt 0:00:00]} fxg5 {[%emt 0:00:13]} 51. exd6 {[%emt 0:00:00]} exd6 {[%emt 0:00:04]} 52. Kd5 {[%emt 0:00:00]} Kxg2 {[%emt 0:00:08]} 53. Nb1 {[%emt 0:00:00]} g4 {[%emt 0:00:49]} 54. Kxd6 {[%emt 0:00:00]} g3 {[%emt 0:00:36]} 55. Kxc5 {[%emt 0:00:00]} Kh1 {[%emt 0:00:16]} 0-1

[Event "NOR-ch Various 2019"]
[Site "Larvik"]
[Date "2019.07.07"]
[Round "2.18"]
[White "Melaa, Sondre"]
[Black "Nielsen, Andre"]
[Result "1-0"]
[ECO "E05"]
[WhiteElo "2118"]
[BlackElo "2229"]
[Annotator "NA"]
[PlyCount "85"]
[EventDate "2019.07.06"]
[EventType "swiss"]
[EventCountry "NOR"]
[SourceTitle "playchess.com"]
[Source "ChessBase"]
[SourceQuality "1"]
[TimeControl "40/5400+30:1800+30"]

1. d4 {[%emt 0:00:28]} Nf6 {[%emt 0:00:00]} 2. c4 {[%emt 0:00:10]} e6 {[%emt 0:00:00]} 3. g3 {[%emt 0:00:06]} d5 {[%emt 0:02:10]} 4. Nf3 {[%emt 0:00:16]} Be7 {[%emt 0:00:45]} 5. Bg2 {[%emt 0:00:29]} O-O {[%emt 0:03:21]} 6. O-O {[%emt 0:00:12]} dxc4 {[%emt 0:00:14]} 7. Qc2 {[%emt 0:00:12]} a6 {[%emt 0:05:13]} 8. a4 {[%emt 0:00:07]} Bd7 {[%emt 0:01:13]} 9. Qxc4 {[%emt 0:00:10]} Bc6 {[%emt 0:00:32]} 10. Bf4 {[%emt 0:00:09]} Nbd7 {[%emt 0:07:42]} 11. Nc3 {[%emt 0:01:43]} Nb6 {[%emt 0:03:00]} 12. Qd3 {[%emt 0:05:20]} Nbd5 {[%emt 0:03:15]} 13. Bg5 {[%emt 0:00:59]} Nxc3 {[%emt 0:12:14]} 14. bxc3 {[%emt 0:00:11]} Be4 {[%emt 0:00:38]} 15. Qe3 {[%emt 0:02:38]} Bd5 {[%emt 0:02:14]} 16. Rab1 {[%emt 0:19:34]} c5 {[%emt 0:05:01]} 17. Bxf6 {[%emt 0:18:09]} Bxf6 {[%emt 0:01:41]} 18. dxc5 {[%emt 0:02:10]} Qa5 {[%emt 0:04:42]} 19. Nd2 {[%emt 0:12:18]} Bxg2 {[%emt 0:07:49]} 20. Kxg2 {[%emt 0:01:40]} Qxa4 {[%emt 0:01:00]} 21. Ne4 {[%emt 0:08:39]} Qc6 {[%emt 0:10:37]} 22. Qf3 {[%emt 0:02:12]} Kh8 {[%emt 0:03:27]} 23. Rb6 {[%emt 0:03:13]} Qd5 {[%emt 0:00:46]} 24. e3 {[%emt 0:06:19]} Bd8 {[%emt 0:10:39]} 25. Rd6 {[%emt 0:03:03]} Qf5 {[%emt 0:02:01]} 26. Rd7 {[%emt 0:01:23]} Qxf3+ {[%emt 0:04:02]} 27. Kxf3 {[%emt 0:00:02]} a5 {[%emt 0:04:40]} 28. Rb1 {[%emt 0:04:02]} a4 {[%emt 0:01:05]} 29. Ke2 {[%emt 0:02:10]} f5 {[%emt 0:02:15]} 30. Nd6 {[%emt 0:00:33]} Bf6 {[%emt 0:00:12]} 31. Kd3 {[%emt 0:01:22]} a3 {[%emt 0:00:32]} 32. Rdxb7 {[%emt 0:00:44]} a2 {[%emt 0:02:16]} 33. Ra1 {[%emt 0:00:07]} Ra5 {[%emt 0:00:36]} 34. Kc4 {[%emt 0:02:47]} Ra4+ {[%emt 0:00:31]} 35. Rb4 {[%emt 0:01:21]} Ra3 {[%emt 0:00:26]} 36. Nb5 {[%emt 0:01:14]} Ra5 {[%emt 0:00:17]} 37. Rb2 {[%emt 0:01:02]} Rfa8 {[%emt 0:00:48]} 38. Nc7 {[%emt 0:00:30]} Ra4+ {[%emt 0:00:22]} 39. Rb4 {[%emt 0:01:01]} Rxb4+ {[%emt 0:00:35]} 40. Kxb4 {[%emt 0:00:03]} Rb8+ {[%emt 0:00:27]} 41. Kc4 {[%emt 0:02:06]} Rb2 {[%emt 0:06:27]} 42. Nxe6 {[%emt 0:01:03]} Rc2 {[%emt 0:01:31]} 43. Nd4 {[%emt 0:00:23]} 1-0

[Event "NOR-ch Various 2019"]
[Site "Larvik"]
[Date "2019.07.07"]
[Round "2.19"]
[White "Kizatbay, Abyl"]
[Black "Kjaras, Alf Marius"]
[Result "1-0"]
[ECO "B52"]
[WhiteElo "2216"]
[BlackElo "1860"]
[Annotator "NA"]
[PlyCount "35"]
[EventDate "2019.07.06"]
[EventType "swiss"]
[EventCountry "NOR"]
[SourceTitle "playchess.com"]
[Source "ChessBase"]
[SourceQuality "1"]
[TimeControl "40/5400+30:1800+30"]

1. e4 {[%emt 0:00:00]} c5 {[%emt 0:00:00]} 2. Nf3 {[%emt 0:00:00]} d6 {[%emt 0:00:00]} 3. Bb5+ {[%emt 0:00:00]} Bd7 {[%emt 0:01:42]} 4. Bxd7+ {[%emt 0:00:00]} Nxd7 {[%emt 0:00:42]} 5. O-O {[%emt 0:00:48]} e6 {[%emt 0:01:10]} 6. d4 {[%emt 0:01:19]} Ngf6 {[%emt 0:03:14]} 7. Nc3 {[%emt 0:09:11]} cxd4 {[%emt 0:01:20]} 8. Nxd4 {[%emt 0:05:12]} Nc5 {[%emt 0:06:09]} 9. Qe2 {[%emt 0:04:15]} Be7 {[%emt 0:09:19]} 10. Rd1 {[%emt 0:00:53]} Qb6 {[%emt 0:13:50]} 11. Be3 {[%emt 0:09:40]} a6 {[%emt 0:10:16]} 12. Nb3 {[%emt 0:05:16]} Qc7 {[%emt 0:03:17]} 13. Nxc5 {[%emt 0:02:58]} dxc5 {[%emt 0:00:05]} 14. Bg5 {[%emt 0:00:16]} Bd6 {[%emt 0:09:50]} 15. Rxd6 {[%emt 0:05:08]} Qxd6 {[%emt 0:00:05]} 16. e5 {[%emt 0:00:05]} Qe7 {[%emt 0:00:21]} 17. Ne4 {[%emt 0:01:28]} h6 {[%emt 0:04:03]} 18. exf6 {[%emt 0:01:21]} 1-0

[Event "NOR-ch Various 2019"]
[Site "Larvik"]
[Date "2019.07.07"]
[Round "2.20"]
[White "Sebastian, Andreas"]
[Black "Bruaset, Eivind"]
[Result "1-0"]
[ECO "B08"]
[WhiteElo "1911"]
[BlackElo "2074"]
[Annotator "NA"]
[PlyCount "71"]
[EventDate "2019.07.06"]
[EventType "swiss"]
[EventCountry "NOR"]
[SourceTitle "playchess.com"]
[Source "ChessBase"]
[SourceQuality "1"]
[TimeControl "40/5400+30:1800+30"]

1. d4 {[%emt 0:00:00]} Nf6 {[%emt 0:00:00]} 2. Nf3 {[%emt 0:00:00]} g6 {[%emt 0:00:00]} 3. Bf4 {[%emt 0:01:45]} Bg7 {[%emt 0:00:07]} 4. Nc3 {[%emt 0:00:07]} O-O {[%emt 0:01:07]} 5. e4 {[%emt 0:00:34]} d6 {[%emt 0:00:22]} 6. Qd2 {[%emt 0:00:11]} Nbd7 {[%emt 0:03:51]} 7. h4 {[%emt 0:03:23]} c5 {[%emt 0:09:24]} 8. d5 {[%emt 0:05:06]} Qa5 {[%emt 0:02:29]} 9. Bh6 {[%emt 0:09:44]} Bxh6 {[%emt 0:17:03]} 10. Qxh6 {[%emt 0:00:14]} Qb4 {[%emt 0:00:06]} 11. O-O-O {[%emt 0:04:46]} Ne5 {[%emt 0:02:47]} 12. Nxe5 {[%emt 0:03:58]} dxe5 {[%emt 0:00:02]} 13. a3 {[%emt 0:02:53]} Qb6 {[%emt 0:00:51]} 14. Be2 {[%emt 0:01:44]} Bd7 {[%emt 0:03:31]} 15. h5 {[%emt 0:05:42]} Kh8 {[%emt 0:13:49]} 16. d6 {[%emt 0:03:22]} Ng8 {[%emt 0:01:27]} 17. Qg5 {[%emt 0:00:41]} h6 {[%emt 0:03:02]} 18. hxg6 {[%emt 0:01:09]} Kg7 {[%emt 0:00:46]} 19. Qxe5+ {[%emt 0:02:29]} f6 {[%emt 0:00:20]} 20. Qh2 {[%emt 0:02:32]} e6 {[%emt 0:02:19]} 21. f4 {[%emt 0:02:41]} Qd8 {[%emt 0:02:34]} 22. g4 {[%emt 0:00:16]} Qe8 {[%emt 0:00:58]} 23. g5 {[%emt 0:04:50]} fxg5 {[%emt 0:01:09]} 24. fxg5 {[%emt 0:00:08]} Qxg6 {[%emt 0:00:45]} 25. Qe5+ {[%emt 0:01:22]} Kh7 {[%emt 0:00:12]} 26. Rdg1 {[%emt 0:07:34]} Rf7 {[%emt 0:01:45]} 27. Kb1 {[%emt 0:06:00]} Raf8 {[%emt 0:01:51]} 28. Bd3 {[%emt 0:03:50]} Rf3 {[%emt 0:05:54]} 29. Qxc5 {[%emt 0:02:56]} R8f7 {[%emt 0:03:49]} 30. gxh6 {[%emt 0:02:57]} b6 {[%emt 0:03:13]} 31. Qb4 {[%emt 0:02:35]} Rh3 {[%emt 0:00:49]} 32. e5 {[%emt 0:00:48]} Rf5 {[%emt 0:00:17]} 33. Rxg6 {[%emt 0:02:13]} Rxh1+ {[%emt 0:00:07]} 34. Ka2 {[%emt 0:00:07]} Kxg6 {[%emt 0:00:36]} 35. Qg4+ {[%emt 0:00:02]} Kxh6 {[%emt 0:00:12]} 36. Qxg8 {[%emt 0:00:46]} 1-0

[Event "NOR-ch Various 2019"]
[Site "Larvik"]
[Date "2019.07.07"]
[Round "2.21"]
[White "Opseth, Oliver"]
[Black "Nordquelle, Daniel"]
[Result "0-1"]
[ECO "B08"]
[WhiteElo "1714"]
[BlackElo "2181"]
[Annotator "NA"]
[PlyCount "90"]
[EventDate "2019.07.06"]
[EventType "swiss"]
[EventCountry "NOR"]
[SourceTitle "playchess.com"]
[Source "ChessBase"]
[SourceQuality "1"]
[TimeControl "40/5400+30:1800+30"]

1. d4 {[%emt 0:00:00]} Nf6 {[%emt 0:01:58]} 2. Nf3 {[%emt 0:00:00]} g6 {[%emt 0:02:33]} 3. Bf4 {[%emt 0:00:00]} Bg7 {[%emt 0:00:04]} 4. Nc3 {[%emt 0:00:26]} d6 {[%emt 0:09:48]} 5. e4 {[%emt 0:01:06]} Nbd7 {[%emt 0:00:54]} 6. Qd2 {[%emt 0:01:18]} O-O {[%emt 0:08:44]} 7. h4 {[%emt 0:01:18]} Re8 {[%emt 0:10:59]} 8. Bc4 {[%emt 0:08:57]} Nb6 {[%emt 0:15:04]} 9. Bb3 {[%emt 0:04:28]} c6 {[%emt 0:00:20]} 10. h5 {[%emt 0:07:09]} d5 {[%emt 0:07:56]} 11. hxg6 {[%emt 0:07:27]} fxg6 {[%emt 0:08:09]} 12. e5 {[%emt 0:06:40]} Nh5 {[%emt 0:03:39]} 13. Bh6 {[%emt 0:06:05]} Bg4 {[%emt 0:06:20]} 14. Bxg7 {[%emt 0:02:54]} Kxg7 {[%emt 0:07:43]} 15. Rh4 {[%emt 0:04:02]} Bxf3 {[%emt 0:00:23]} 16. gxf3 {[%emt 0:00:28]} e6 {[%emt 0:00:10]} 17. Rxh5 {[%emt 0:08:47]} gxh5 {[%emt 0:00:10]} 18. O-O-O {[%emt 0:00:16]} Nd7 {[%emt 0:01:56]} 19. Ne2 {[%emt 0:01:55]} Kh8 {[%emt 0:00:11]} 20. Rh1 {[%emt 0:02:08]} h4 {[%emt 0:02:34]} 21. Qh6 {[%emt 0:05:41]} Re7 {[%emt 0:02:45]} 22. Nf4 {[%emt 0:02:14]} Qg8 {[%emt 0:01:37]} 23. c3 {[%emt 0:02:51]} Qg7 {[%emt 0:02:25]} 24. Qxh4 {[%emt 0:00:43]} Rg8 {[%emt 0:01:06]} 25. Bc2 {[%emt 0:00:34]} Nf8 {[%emt 0:00:14]} 26. Kb1 {[%emt 0:04:32]} Rf7 {[%emt 0:02:00]} 27. Nh5 {[%emt 0:02:50]} Qg5 {[%emt 0:00:28]} 28. Qh3 {[%emt 0:01:54]} Qg2 {[%emt 0:00:40]} 29. Qh4 {[%emt 0:02:17]} Qg5 {[%emt 0:00:02]} 30. Qh3 {[%emt 0:00:36]} Qg2 {[%emt 0:01:27]} 31. Qh4 {[%emt 0:00:06]} Ng6 {[%emt 0:00:32]} 32. Qh3 {[%emt 0:00:38]} Qxh3 {[%emt 0:00:29]} 33. Rxh3 {[%emt 0:00:01]} Nf4 {[%emt 0:00:18]} 34. Nxf4 {[%emt 0:00:17]} Rg1+ {[%emt 0:00:04]} 35. Bd1 {[%emt 0:00:03]} Rxf4 {[%emt 0:00:16]} 36. Kc2 {[%emt 0:00:09]} Kg7 {[%emt 0:01:04]} 37. Kd2 {[%emt 0:00:10]} Rf7 {[%emt 0:01:32]} 38. Bc2 {[%emt 0:00:16]} h6 {[%emt 0:00:32]} 39. Ke2 {[%emt 0:00:30]} b6 {[%emt 0:00:53]} 40. Rh4 {[%emt 0:01:18]} c5 {[%emt 0:01:02]} 41. dxc5 {[%emt 0:30:55]} bxc5 {[%emt 0:02:53]} 42. Ra4 {[%emt 0:00:00]} h5 {[%emt 0:01:28]} 43. Ra6 {[%emt 0:00:00]} h4 {[%emt 0:02:28]} 44. Rxe6 {[%emt 0:00:00]} h3 {[%emt 0:00:07]} 45. c4 {[%emt 0:00:00]} h2 {[%emt 0:00:27]} 0-1

[Event "NOR-ch Various 2019"]
[Site "Larvik"]
[Date "2019.07.07"]
[Round "2.22"]
[White "Larre, Linnea"]
[Black "Tunsjo, Axel"]
[Result "0-1"]
[ECO "A25"]
[WhiteElo "1648"]
[BlackElo "2039"]
[Annotator "NA"]
[PlyCount "90"]
[EventDate "2019.07.06"]
[EventType "swiss"]
[EventCountry "NOR"]
[SourceTitle "playchess.com"]
[Source "ChessBase"]
[SourceQuality "1"]
[TimeControl "40/5400+30:1800+30"]

1. c4 {[%emt 0:00:00]} e5 {[%emt 0:00:11]} 2. g3 {[%emt 0:00:00]} Nc6 {[%emt 0:00:29]} 3. Bg2 {[%emt 0:00:22]} g6 {[%emt 0:00:46]} 4. Nc3 {[%emt 0:00:34]} Bg7 {[%emt 0:00:08]} 5. e3 {[%emt 0:01:49]} d6 {[%emt 0:00:36]} 6. Nge2 {[%emt 0:01:37]} Nge7 {[%emt 0:00:34]} 7. d4 {[%emt 0:02:01]} exd4 {[%emt 0:01:25]} 8. Nxd4 {[%emt 0:06:23]} O-O {[%emt 0:01:35]} 9. O-O {[%emt 0:00:25]} Re8 {[%emt 0:02:17]} 10. Re1 {[%emt 0:02:17]} Bd7 {[%emt 0:02:30]} 11. Nce2 {[%emt 0:05:26]} Qc8 {[%emt 0:02:26]} 12. Bd2 {[%emt 0:01:20]} Ne5 {[%emt 0:13:03]} 13. Rc1 {[%emt 0:03:47]} Nd3 {[%emt 0:00:55]} 14. Qc2 {[%emt 0:02:24]} Nxe1 {[%emt 0:00:18]} 15. Rxe1 {[%emt 0:00:33]} c5 {[%emt 0:01:46]} 16. Nf3 {[%emt 0:01:28]} Rb8 {[%emt 0:02:06]} 17. Rd1 {[%emt 0:04:10]} b5 {[%emt 0:00:39]} 18. Bc3 {[%emt 0:04:37]} Bxc3 {[%emt 0:01:14]} 19. Nxc3 {[%emt 0:00:35]} Bc6 {[%emt 0:05:22]} 20. cxb5 {[%emt 0:04:15]} Bxf3 {[%emt 0:00:54]} 21. Bxf3 {[%emt 0:00:10]} Rd8 {[%emt 0:02:09]} 22. Ne4 {[%emt 0:05:46]} Qf5 {[%emt 0:03:36]} 23. Qc3 {[%emt 0:01:07]} Qxf3 {[%emt 0:09:25]} 24. Nf6+ {[%emt 0:20:13]} Kh8 {[%emt 0:00:19]} 25. Rd2 {[%emt 0:05:53]} Qf5 {[%emt 0:07:04]} 26. f4 {[%emt 0:10:35]} Ng8 {[%emt 0:01:00]} 27. Nd7+ {[%emt 0:03:57]} f6 {[%emt 0:00:03]} 28. Nxb8 {[%emt 0:00:27]} Rxb8 {[%emt 0:00:05]} 29. Rxd6 {[%emt 0:00:39]} Rxb5 {[%emt 0:00:19]} 30. Qc1 {[%emt 0:04:07]} Qe4 {[%emt 0:03:26]} 31. Kf2 {[%emt 0:00:35]} a5 {[%emt 0:00:17]} 32. Rd8 {[%emt 0:00:26]} Qb4 {[%emt 0:02:43]} 33. b3 {[%emt 0:01:05]} a4 {[%emt 0:03:37]} 34. Qb2 {[%emt 0:00:40]} Rb6 {[%emt 0:00:00]} 35. Qc2 {[%emt 0:00:00]} axb3 {[%emt 0:00:39]} 36. axb3 {[%emt 0:00:00]} Rc6 {[%emt 0:02:47]} 37. Qd3 {[%emt 0:00:26]} Re6 {[%emt 0:05:21]} 38. Kf3 {[%emt 0:06:24]} Qe1 {[%emt 0:02:44]} 39. Rc8 {[%emt 0:02:05]} Qh1+ {[%emt 0:00:16]} 40. Ke2 {[%emt 0:00:18]} Qxh2+ {[%emt 0:00:09]} 41. Kd1 {[%emt 0:30:08]} Qg1+ {[%emt 0:31:45]} 42. Ke2 {[%emt 0:00:00]} Qg2+ {[%emt 0:00:00]} 43. Kd1 {[%emt 0:00:00]} Qf3+ {[%emt 0:00:00]} 44. Kd2 {[%emt 0:00:00]} Qf2+ {[%emt 0:00:00]} 45. Qe2 {[%emt 0:00:00]} Rd6+ {[%emt 0:00:00]} 0-1